bitfinex/quotes_SOLUSD_20251128
["timestamp","ask_amount","ask_price","bid_price","bid_amount"]
[1764357921591,0.71,137.98,137.94,3.83294677]
[1764357922198,0.71,137.98,137.94,11.08198948]
[1764357923002,0.71,137.98,137.94,7.24904271]
[1764357923189,0.71,137.98,137.94,11.08198948]
[1764357925392,4.54294677,137.98,137.94,11.08198948]
[1764357925589,0.71,137.97,137.94,11.08198948]
[1764357925792,0.71,137.97,137.94,7.24904271]
[1764357928218,0.71,137.97,137.94,11.76198948]
[1764357928378,0.71,137.97,137.94,11.08198948]
[1764357929104,0.71,137.97,137.94,7.24904271]
[1764357929401,0.71,137.97,137.94,11.08198948]
[1764357930401,7.95798967,137.97,137.94,11.08198948]
[1764357930602,7.95798967,137.97,137.94,7.24904271]
[1764357930780,0.71,137.96,137.93,11.082817]
[1764357930980,4.54294677,137.96,137.9,11.76077261]
[1764357931176,3.83294677,137.94,137.89,4.51294677]
[1764357931581,0.71,137.93,137.89,4.51294677]
[1764357932287,0.71,137.93,137.9,7.25163161]
[1764357932683,7.96010647,137.93,137.9,7.25163161]
[1764357933095,0.71,137.93,137.9,11.08457838]
[1764357933792,0.71,137.93,137.9,11.76457838]
[1764357934193,0.71,137.93,137.9,11.08457838]
[1764357934499,0.71,137.93,137.9,11.76457838]
[1764357934928,0.71,137.96,137.92,3.83294677]
[1764357935209,0.71,137.96,137.93,3.83294677]
[1764357935503,0.71,137.96,137.92,3.83294677]
[1764357935683,0.71,137.96,137.92,4.50294677]
[1764357936089,0.71,137.96,137.93,3.83294677]
[1764357937310,7.95854207,137.96,137.93,3.83294677]
[1764357937486,0.72,137.95,137.93,3.83294677]
[1764357938009,0.72,137.95,137.92,11.75309038]
[1764357940315,0.72,137.95,137.92,7.92014361]
[1764357940505,0.72,137.95,137.92,11.75309038]
[1764357942223,7.24854207,137.96,137.92,11.08309038]
[1764357942443,7.96854207,137.96,137.93,0.67]
[1764357943291,7.96816345,137.97,137.93,11.75268762]
[1764357943813,0.72,137.96,137.93,11.75268762]
[1764357944996,7.24816345,137.97,137.94,3.83294677]
[1764357945202,111.34748171,137.98,137.94,11.75206713]
[1764357945406,112.06748171,137.98,137.95,0.67]
[1764357947638,112.06748171,137.98,137.95,7.91894341]
[1764357947818,0.72,137.97,137.95,7.24894341]
[1764357949034,21.78728348,138.01,137.96,4.50294677]
[1764357949242,21.78728348,138.01,137.98,3.83294677]
[1764357949243,0.72,138.01,137.98,3.83294677]
[1764357949404,0.72,138.0,137.96,21.99543075]
[1764357949602,4.55294677,138.0,137.96,21.99543075]
[1764357949905,3.83294677,137.99,137.96,21.32543075]
[1764357950105,4.55294677,137.99,137.96,3.2]
[1764357950305,0.72,138.0,137.96,7.70294677]
[1764357950716,4.55294677,138.0,137.96,3.87]
[1764357951426,0.72,137.99,137.96,10.44804029]
[1764357951720,0.72,137.99,137.96,11.11804029]
[1764357952737,0.72,137.99,137.96,3.2]
[1764357952910,11.79994918,137.99,137.96,3.2]
[1764357953110,3.83294677,137.97,137.94,19.508864]
[1764357953326,3.83294677,137.97,137.94,26.75835251]
[1764357953504,0.72,137.96,137.94,19.508864]
[1764357953816,0.72,137.96,137.94,16.308864]
[1764357955422,0.72,137.96,137.93,7.24974725]
[1764357955610,3.83294677,137.95,137.92,10.45041656]
[1764357956317,0.72,137.94,137.92,10.45041656]
[1764357957523,0.72,137.94,137.92,3.2]
[1764357960917,7.24902338,137.95,137.92,3.2]
[1764357961115,11.80197015,137.95,137.92,3.87]
[1764357961917,0.72,137.94,137.92,3.2]
[1764357962459,0.72,137.94,137.89,7.24902338]
[1764357962460,3.83294677,137.93,137.89,7.24902338]
[1764357962655,3.92,137.94,137.87,7.25296946]
[1764357962656,3.83294677,137.9,137.87,7.25296946]
[1764357962827,3.83294677,137.9,137.86,7.92373567]
[1764357963017,0.72,137.89,137.86,7.92373567]
[1764357964985,0.72,137.89,137.86,11.75668244]
[1764357965115,0.72,137.89,137.86,11.08668244]
[1764357965434,0.72,137.89,137.86,7.25373567]
[1764357966845,2.45405288,137.87,137.83,18.13819826]
[1764357967044,2.45405288,137.87,137.83,18.84819826]
[1764357967218,0.72,137.87,137.83,21.30225114]
[1764357967537,0.72,137.87,137.84,7.25475222]
[1764357968342,0.72,137.87,137.84,7.96475222]
[1764357968731,7.2531546,137.88,137.85,0.71]
[1764357968918,7.9731546,137.88,137.85,0.71]
[1764357969119,7.9731546,137.88,137.84,9.7088051]
[1764357969342,7.9731546,137.88,137.84,10.4188051]
[1764357969529,7.9731546,137.88,137.84,7.96475222]
[1764357969752,7.9731546,137.88,137.84,10.4188051]
[1764357970258,7.2531546,137.88,137.84,3.16405288]
[1764357970424,0.72,137.87,137.84,3.16405288]
[1764357970628,0.72,137.87,137.84,0.71]
[1764357971955,0.72,137.88,137.84,10.41883869]
[1764357972127,104.1,137.89,137.84,10.41883869]
[1764357972128,0.72,137.87,137.84,9.70883869]
[1764357972330,10.42744652,137.87,137.82,21.96291688]
[1764357972527,2.45405288,137.86,137.82,19.508864]
[1764357972743,2.45405288,137.86,137.82,3.2]
[1764357972744,2.45405288,137.84,137.82,3.2]
[1764357972935,2.45405288,137.84,137.8,3.2]
[1764357973138,2.45405288,137.84,137.8,3.91]
[1764357973336,0.72,137.86,137.83,2.45405288]
[1764357973549,0.72,137.86,137.83,5.65405288]
[1764357974053,7.97394551,137.86,137.83,3.91]
[1764357975828,7.25394551,137.86,137.83,3.91]
[1764357976135,7.97394551,137.86,137.83,3.91]
[1764357980662,0.69,137.85,137.83,3.2]
[1764357980966,7.25394551,137.86,137.83,3.87]
[1764357980967,7.94394551,137.86,137.83,3.87]
[1764357981864,0.69,137.85,137.81,7.25611712]
[1764357982061,2.45405288,137.84,137.81,7.25611712]
[1764357982451,0.69,137.83,137.81,7.25611712]
[1764357982853,2.45405288,137.84,137.8,25.39912916]
[1764357983054,3.14405288,137.84,137.81,0.67]
[1764357983670,2.45405288,137.84,137.8,25.39912916]
[1764357983872,3.14405288,137.84,137.81,0.67]
[1764357984372,3.14405288,137.84,137.81,7.92590193]
[1764357985850,0.69,137.83,137.81,7.25590193]
[1764357986050,0.69,137.84,137.81,7.92590193]
[1764357986866,9.70865392,137.85,137.81,7.25590193]
[1764357987058,0.69,137.84,137.81,7.92590193]
[1764357987771,7.94460104,137.85,137.82,0.67]
[1764357988180,7.25460104,137.85,137.82,0.67]
[1764357988554,7.25460104,137.85,137.82,3.87]
[1764357988757,7.25460104,137.85,137.83,0.67]
[1764357989458,7.25460104,137.85,137.82,10.45574309]
[1764357989658,7.94460104,137.85,137.82,11.12574309]
[1764357990654,9.7078238,137.86,137.82,10.45574309]
[1764357990876,0.69,137.87,137.83,3.12405288]
[1764357991294,0.69,137.87,137.84,0.67]
[1764357992473,0.69,137.87,137.84,7.92478816]
[1764357992665,7.94328691,137.87,137.84,7.25478816]
[1764357992858,104.1,137.89,137.85,3.87]
[1764357993180,7.94072523,137.92,137.87,2.45405288]
[1764357993373,7.94072523,137.92,137.87,18.76291688]
[1764357993552,7.94072523,137.92,137.88,0.67]
[1764357993754,106.55405288,137.94,137.88,6.32405288]
[1764357993979,0.69,137.93,137.88,6.32405288]
[1764357994158,0.69,137.93,137.89,0.67]
[1764357994577,7.94009061,137.93,137.89,7.92180678]
[1764357994972,0.69,137.92,137.89,7.92180678]
[1764357999371,114.51372918,137.94,137.9,0.67]
[1764357999691,0.71,137.93,137.9,0.67]
[1764358001686,0.71,137.93,137.9,7.92161704]
[1764358002393,0.71,137.93,137.9,7.25161704]
[1764358002606,2.45405288,137.92,137.87,16.308864]
[1764358002808,10.41446674,137.93,137.88,10.3766837]
[1764358003174,0.71,137.92,137.89,0.67]
[1764358003902,0.71,137.92,137.89,7.92166519]
[1764358004072,104.81,137.94,137.9,2.45405288]
[1764358004391,104.81,137.94,137.9,3.12405288]
[1764358004773,0.71,137.93,137.9,3.12405288]
[1764358004968,0.71,137.93,137.9,0.67]
[1764358006198,0.71,137.93,137.9,7.92117258]
[1764358006975,0.71,137.93,137.9,7.25117258]
[1764358008002,0.71,137.93,137.9,7.92117258]
[1764358012296,0.71,137.93,137.9,7.25117258]
[1764358012595,0.71,137.93,137.9,7.92117258]
[1764358014191,107.26405288,137.94,137.91,0.67]
[1764358014394,104.1,137.94,137.91,0.67]
[1764358014585,0.71,137.93,137.9,7.25117258]
[1764358014786,0.71,137.93,137.9,7.92117258]
[1764358019199,106.55405288,137.94,137.9,25.38025162]
[1764358019482,104.81,137.94,137.91,0.67]
[1764358019686,104.81,137.94,137.91,3.12405288]
[1764358020094,104.81,137.94,137.91,0.67]
[1764358020494,104.1,137.94,137.92,0.67]
[1764358020693,104.81,137.94,137.92,0.67]
[1764358020909,104.81,137.94,137.91,0.67]
[1764358021213,0.71,137.93,137.91,7.92073238]
[1764358021788,104.81,137.94,137.91,7.92073238]
[1764358022108,0.71,137.93,137.91,7.92073238]
[1764358022317,104.81,137.94,137.91,7.92073238]
[1764358024085,104.81,137.94,137.91,7.25073238]
[1764358024289,104.81,137.94,137.91,7.92073238]
[1764358024491,104.1,137.94,137.92,3.12405288]
[1764358024788,104.1,137.94,137.93,3.2]
[1764358024996,7.95838516,137.97,137.93,3.87]
[1764358025206,7.95838516,137.97,137.94,0.69]
[1764358025402,104.81,137.98,137.94,0.69]
[1764358025721,104.81,137.98,137.94,3.14405288]
[1764358026112,104.81,137.98,137.95,0.69]
[1764358026817,104.1,137.98,137.95,0.69]
[1764358027194,0.71,137.97,137.95,0.69]
[1764358027524,0.71,137.97,137.94,7.24900421]
[1764358027722,0.71,137.97,137.94,7.93900421]
[1764358031332,3.82937517,137.95,137.89,7.25203376]
[1764358031617,3.82937517,137.92,137.89,7.94203376]
[1764358031821,3.82937517,137.91,137.87,3.2]
[1764358032010,4.53937517,137.9,137.87,3.2]
[1764358032210,0.71,137.9,137.87,3.89]
[1764358032525,4.53937517,137.91,137.88,0.69]
[1764358032932,0.71,137.91,137.88,0.69]
[1764358033131,4.53937517,137.91,137.88,7.9426245]
[1764358033317,4.53937517,137.91,137.88,7.2526245]
[1764358033630,0.71,137.9,137.88,7.2526245]
[1764358034036,0.71,137.9,137.87,10.45298182]
[1764358034423,4.53937517,137.9,137.87,10.45298182]
[1764358035045,4.53937517,137.9,137.87,3.2]
[1764358035348,0.71,137.89,137.87,3.2]
[1764358035634,0.71,137.9,137.87,11.14313944]
[1764358035840,4.53937517,137.9,137.87,11.14313944]
[1764358037054,0.71,137.89,137.87,3.2]
[1764358038044,0.71,137.89,137.86,7.25367907]
[1764358038340,11.08107954,137.9,137.86,7.25367907]
[1764358038341,104.1,137.91,137.87,0.69]
[1764358038525,104.81,137.91,137.87,0.69]
[1764358038726,104.81,137.91,137.87,4.51937517]
[1764358039141,104.81,137.91,137.88,0.69]
[1764358040238,112.06114245,137.91,137.88,0.69]
[1764358041039,104.81,137.91,137.88,7.94222615]
[1764358041230,104.1,137.91,137.88,7.94222615]
[1764358041425,104.1,137.91,137.88,11.14222615]
[1764358041620,104.81,137.91,137.88,14.97160132]
[1764358042635,104.81,137.91,137.88,11.14222615]
[1764358051398,0.71,137.9,137.88,3.2]
[1764358051562,0.71,137.9,137.88,10.45263669]
[1764358052072,0.71,137.9,137.88,11.17263669]
[1764358052683,104.81,137.91,137.88,11.17263669]
[1764358053042,0.71,137.9,137.88,11.17263669]
[1764358053971,0.71,137.9,137.88,10.45263669]
[1764358054156,104.81,137.91,137.88,11.17263669]
[1764358054745,104.1,137.91,137.88,11.17263669]
[1764358054949,0.71,137.9,137.88,11.17263669]
[1764358058077,0.71,137.9,137.88,3.2]
[1764358058393,0.67,137.91,137.88,0.66]
[1764358059378,7.92128246,137.91,137.87,8.65301154]
[1764358059767,0.67,137.9,137.87,8.65301154]
[1764358062286,0.67,137.92,137.88,0.66]
[1764358062487,4.49937517,137.92,137.88,0.66]
[1764358062690,3.82937517,137.91,137.87,7.99301154]
[1764358062908,4.49937517,137.91,137.87,8.65301154]
[1764358063082,0.67,137.91,137.88,0.66]
[1764358064277,0.67,137.91,137.89,7.25215751]
[1764358073283,0.67,137.91,137.88,7.91250115]
[1764358076988,3.82937517,137.89,137.87,0.74]
[1764358077287,3.82937517,137.88,137.85,19.508864]
[1764358077597,3.82937517,137.88,137.85,3.2]
[1764358077801,0.67,137.87,137.85,3.2]
[1764358078505,0.67,137.87,137.85,3.86]
[1764358079610,11.08214417,137.88,137.85,3.86]
[1764358079814,7.922769,137.88,137.85,3.86]
[1764358080214,0.67,137.87,137.85,3.2]
[1764358090926,0.67,137.87,137.85,3.87]
[1764358091519,0.67,137.87,137.85,3.2]
[1764358091720,7.92332537,137.87,137.85,3.2]
[1764358092220,0.67,137.87,137.85,3.2]
[1764358092402,0.67,137.87,137.85,3.87]
[1764358092604,0.67,137.87,137.85,3.2]
[1764358092921,0.68,137.87,137.85,3.87]
[1764358093919,0.68,137.87,137.85,3.2]
[1764358094831,10.38770759,137.87,137.83,16.308864]
[1764358095004,2.45442013,137.84,137.81,3.2]
[1764358095205,0.68,137.86,137.81,3.87]
[1764358095406,3.13442013,137.86,137.82,0.67]
[1764358095834,0.68,137.85,137.82,0.67]
[1764358096710,10.38900012,137.85,137.82,0.67]
[1764358097806,3.13442013,137.84,137.81,3.2]
[1764358098004,2.45442013,137.84,137.82,0.67]
[1764358098229,10.38900012,137.85,137.82,0.67]
[1764358098725,9.70900012,137.85,137.82,0.67]
[1764358098928,10.38900012,137.85,137.82,0.67]
[1764358100841,0.71,137.84,137.81,11.12636513]
[1764358101037,0.71,137.84,137.82,0.67]
[1764358101345,3.16442013,137.84,137.81,11.12636513]
[1764358101546,0.71,137.84,137.81,11.12636513]
[1764358102040,7.96457999,137.85,137.82,0.67]
[1764358102246,0.71,137.84,137.82,0.67]
[1764358103545,10.41900012,137.85,137.82,0.67]
[1764358103750,0.71,137.84,137.82,0.67]
[1764358105044,9.70900012,137.85,137.82,0.67]
[1764358105248,7.25373567,137.86,137.82,10.38000579]
[1764358105563,0.71,137.86,137.83,2.45442013]
[1764358105851,0.71,137.86,137.83,3.12442013]
[1764358106148,111.35342196,137.87,137.82,9.71000579]
[1764358106476,0.71,137.87,137.84,0.67]
[1764358106641,0.71,137.87,137.84,3.87]
[1764358107768,0.71,137.87,137.84,11.12426471]
[1764358109175,0.71,137.87,137.84,10.45426471]
[1764358109471,0.71,137.87,137.85,7.25420106]
[1764358110162,107.3,137.9,137.85,7.25420106]
[1764358110375,0.71,137.93,137.88,2.45442013]
[1764358110673,0.71,137.93,137.89,5.65442013]
[1764358111178,0.71,137.94,137.9,3.12442013]
[1764358111357,0.71,137.94,137.9,10.37554971]
[1764358111564,0.71,137.93,137.9,10.37554971]
[1764358112283,0.71,137.95,137.91,3.12442013]
[1764358112870,7.95908996,137.95,137.91,0.67]
[1764358113282,0.71,137.94,137.9,7.25112958]
[1764358113459,0.71,137.94,137.9,7.92112958]
[1764358113778,104.1,137.96,137.91,3.12442013]
[1764358113779,0.71,137.96,137.91,3.12442013]
[1764358113957,0.71,137.96,137.92,5.65442013]
[1764358114158,0.71,137.96,137.92,6.32442013]
[1764358114371,0.71,137.96,137.93,0.67]
[1764358114574,0.71,137.96,137.92,6.32442013]
[1764358114770,0.71,137.96,137.93,7.25005437]
[1764358118376,7.93828016,137.97,137.94,0.7]
[1764358118572,0.69,137.98,137.94,10.40383263]
[1764358118774,0.69,137.97,137.94,10.40383263]
[1764358118960,0.69,137.97,137.94,7.9494125]
[1764358121564,0.69,137.97,137.92,16.9547749]
[1764358121565,7.93804735,137.97,137.92,16.9547749]
[1764358121763,2.45442013,137.95,137.92,7.2503004]
[1764358121969,0.69,137.94,137.92,7.2503004]
[1764358123582,0.69,137.95,137.92,7.9503004]
[1764358126282,0.69,137.97,137.94,7.24952878]
[1764358126496,0.69,137.97,137.94,10.44952878]
[1764358126787,0.69,137.97,137.94,11.14952878]
[1764358129369,10.39208887,137.98,137.95,0.7]
[1764358131073,0.69,137.97,137.94,11.14952878]
[1764358131791,2.45442013,137.98,137.95,7.9489205]
[1764358131992,0.69,137.98,137.95,7.9489205]
[1764358132194,3.14442013,137.97,137.94,11.14930992]
[1764358132586,0.69,137.97,137.94,11.14930992]
[1764358133079,0.69,137.97,137.95,0.7]
[1764358133274,2.45442013,137.98,137.95,0.7]
[1764358133599,3.14442013,137.98,137.95,0.7]
[1764358134195,10.39188801,137.98,137.95,0.7]
[1764358134901,104.79,138.0,137.95,7.94869921]
[1764358135078,111.3464279,138.0,137.95,7.94869921]
[1764358135396,3.14442013,137.99,137.95,7.94869921]
[1764358135896,0.69,137.98,137.95,7.94869921]
[1764358136379,0.69,137.98,137.95,26.07120736]
[1764358136975,3.14442013,137.98,137.94,3.9]
[1764358137186,3.14442013,137.98,137.95,7.24870936]
[1764358137384,2.45442013,137.96,137.94,3.2]
[1764358138497,3.14442013,137.97,137.94,3.2]
[1764358138902,3.14442013,137.97,137.94,3.9]
[1764358139403,3.14442013,137.97,137.94,11.14914141]
[1764358140005,0.69,137.97,137.94,11.14914141]
[1764358140203,2.45442013,137.97,137.94,11.14914141]
[1764358140381,3.14442013,137.97,137.94,11.14914141]
[1764358140582,0.69,137.97,137.94,11.14914141]
[1764358140804,0.69,137.96,137.94,11.14914141]
[1764358140984,0.69,137.96,137.94,10.44914141]
[1764358142085,7.24774287,137.98,137.94,10.44914141]
[1764358142086,3.14442013,137.98,137.94,10.44914141]
[1764358142386,0.69,137.97,137.94,11.14914141]
[1764358142708,0.69,137.97,137.95,0.7]
[1764358143401,0.69,137.97,137.95,7.24859621]
[1764358143999,2.45442013,137.98,137.95,7.24859621]
[1764358144203,10.39132207,137.99,137.96,0.7]
[1764358144507,10.39132207,137.99,137.95,7.24859621]
[1764358144508,9.70132207,137.99,137.95,7.24859621]
[1764358144701,9.70132207,137.99,137.95,7.94859621]
[1764358144702,0.69,137.98,137.95,7.94859621]
[1764358149018,0.69,137.98,137.95,7.96859621]
[1764358151828,3.82888547,137.99,137.96,0.72]
[1764358151990,4.47888547,137.99,137.96,0.72]
[1764358152616,0.65,137.98,137.96,0.72]
[1764358153910,108.57888547,138.0,137.96,7.96824008]
[1764358154210,0.65,137.99,137.96,7.96824008]
[1764358154396,108.57888547,138.0,137.97,3.92]
[1764358155112,0.65,137.99,137.97,3.2]
[1764358156008,0.65,137.99,137.97,10.44779229]
[1764358157010,107.92888547,138.0,137.97,10.44779229]
[1764358157401,0.65,137.99,137.97,10.44779229]
[1764358158197,104.1,138.0,137.97,10.44779229]
[1764358158407,3.82888547,138.02,137.98,0.72]
[1764358158718,0.65,138.03,137.98,0.72]
[1764358159013,4.47888547,138.03,137.98,0.72]
[1764358159207,104.75,138.05,138.0,16.308864]
[1764358159406,108.57888547,138.05,138.01,3.92]
[1764358159612,107.92888547,138.05,138.01,3.92]
[1764358159793,108.57888547,138.05,138.02,0.72]
[1764358160119,108.57888547,138.05,138.02,7.96515107]
[1764358161619,4.54888547,138.04,138.02,7.24515107]
[1764358162532,3.82888547,138.05,138.02,7.91515107]
[1764358162823,4.54888547,138.05,138.02,7.91515107]
[1764358163030,4.54888547,138.05,138.02,7.24515107]
[1764358163616,4.54888547,138.05,138.02,7.91515107]
[1764358163920,3.82888547,138.05,138.02,7.91515107]
[1764358164534,4.54888547,138.04,138.02,7.91515107]
[1764358164711,3.82888547,138.04,138.02,7.91515107]
[1764358164907,4.54888547,138.03,138.0,23.55485366]
[1764358165229,7.96375226,138.05,138.0,24.22485366]
[1764358165418,3.82888547,138.03,138.0,24.22485366]
[1764358165808,4.54888547,138.03,138.0,24.22485366]
[1764358167110,0.72,138.02,138.0,23.55485366]
[1764358168138,4.54888547,138.03,138.0,24.22485366]
[1764358168315,0.72,138.02,138.0,24.22485366]
[1764358168833,0.72,138.02,138.0,23.55485366]
[1764358169027,3.82888547,138.04,138.01,0.67]
[1764358169332,3.82888547,138.05,138.02,7.24532676]
[1764358169534,0.72,138.04,138.02,7.24532676]
[1764358170225,4.74888547,138.06,138.02,10.44532676]
[1764358170538,4.74888547,138.06,138.03,0.67]
[1764358170711,0.2,138.06,138.03,0.67]
[1764358171125,0.92,138.06,138.03,0.67]
[1764358171530,0.92,138.06,138.04,7.24427702]
[1764358172219,0.92,138.06,138.02,21.31331691]
[1764358172220,4.54888547,138.05,138.02,3.2]
[1764358172420,4.54888547,138.05,138.02,11.11507229]
[1764358172814,0.72,138.04,138.02,10.44507229]
[1764358173235,4.54888547,138.04,138.02,3.2]
[1764358173443,4.54888547,138.04,138.02,10.44521175]
[1764358173628,3.82888547,138.04,138.02,10.44521175]
[1764358174351,3.82888547,138.04,138.02,11.11521175]
[1764358174634,3.82888547,138.04,138.02,10.44521175]
[1764358174841,4.54888547,138.04,138.02,10.44521175]
[1764358175246,0.72,138.04,138.02,10.44521175]
[1764358175478,4.54888547,138.04,138.02,10.44521175]
[1764358175659,3.82888547,138.03,138.02,3.2]
[1764358175846,4.48888547,138.03,138.02,3.2]
[1764358176046,0.66,138.03,138.01,7.24571314]
[1764358176253,4.48888547,138.03,138.01,7.24571314]
[1764358183782,0.66,138.03,138.01,7.24571314]
[1764358184295,4.48888547,138.04,138.01,7.96571314]
[1764358184880,11.0726683,138.05,138.02,3.92]
[1764358185275,11.7326683,138.05,138.02,3.92]
[1764358185474,11.7326683,138.05,138.02,11.16519537]
[1764358187681,0.66,138.05,138.02,11.16519537]
[1764358190811,4.48888547,138.05,138.02,11.16519537]
[1764358192625,0.66,138.04,138.02,3.2]
[1764358193509,4.48888547,138.04,138.02,3.2]
[1764358193808,3.82888547,138.03,138.02,3.2]
[1764358194128,4.48888547,138.03,138.02,3.2]
[1764358195112,4.48888547,138.03,138.01,3.2]
[1764358195914,3.82888547,138.03,138.01,3.2]
[1764358196097,4.48888547,138.03,138.01,3.2]
[1764358197109,4.48888547,138.02,137.99,7.24676709]
[1764358197308,4.48888547,138.02,138.0,3.2]
[1764358197609,0.66,138.01,138.0,3.2]
[1764358198403,11.73473721,138.01,138.0,3.2]
[1764358198595,11.73473721,138.01,137.97,7.96771889]
[1764358198596,11.73473721,138.01,137.98,3.2]
[1764358198904,11.73473721,138.01,137.97,7.96771889]
[1764358198905,4.48888547,138.0,137.97,3.2]
[1764358199220,3.82888547,137.98,137.95,3.92]
[1764358199417,3.82888547,137.98,137.95,11.1688616]
[1764358199619,4.48888547,137.99,137.95,27.4777256]
[1764358199817,0.66,137.98,137.95,27.4777256]
[1764358201125,4.48888547,137.98,137.95,27.4777256]
[1764358202017,3.82888547,137.97,137.95,3.2]
[1764358202201,3.82888547,137.96,137.93,25.37420471]
[1764358202395,4.48888547,137.96,137.93,26.09420471]
[1764358202729,7.24750951,137.98,137.94,0.72]
[1764358202929,0.66,137.99,137.95,3.2]
[1764358203220,3.82888547,137.96,137.93,10.44967677]
[1764358203606,3.82888547,137.96,137.93,11.16967677]
[1764358204122,7.24794742,137.98,137.94,0.72]
[1764358204327,3.82888547,137.97,137.94,0.72]
[1764358204825,11.73683289,137.98,137.94,0.72]
[1764358204997,7.90794742,137.98,137.95,7.24900326]
[1764358205197,3.82888547,137.99,137.95,7.24900326]
[1764358205429,4.48888547,137.99,137.96,0.72]
[1764358205934,4.48888547,137.99,137.96,3.92]
[1764358206838,4.48888547,137.99,137.96,11.1684697]
[1764358207338,3.82888547,137.99,137.96,10.4484697]
[1764358207512,3.82888547,138.01,137.97,0.72]
[1764358207712,4.48888547,138.01,137.97,0.72]
[1764358207920,0.66,138.0,137.97,0.72]
[1764358208641,4.48888547,138.01,137.97,0.72]
[1764358209161,4.48888547,138.01,137.98,7.24742716]
[1764358210026,4.48888547,138.01,137.98,0.72]
[1764358210519,3.82888547,138.02,137.98,0.72]
[1764358210929,4.48888547,138.02,137.98,0.72]
[1764358211540,4.48888547,138.02,137.99,3.2]
[1764358212137,4.48888547,138.02,137.99,10.44667964]
[1764358212340,0.66,138.05,138.0,0.72]
[1764358212522,7.44365791,138.06,138.01,8.80994492]
[1764358212523,3.30818526,138.06,138.01,8.80994492]
[1764358212720,0.86,138.06,138.02,3.2]
[1764358212930,0.2,138.06,138.02,3.92]
[1764358213134,0.2,138.06,138.03,0.72]
[1764358213335,3.30818526,138.06,138.02,3.92]
[1764358213748,0.66,138.05,138.02,3.92]
[1764358214250,3.10818526,138.05,138.02,3.2]
[1764358214452,2.44818526,138.04,138.02,3.2]
[1764358214642,3.10818526,138.04,138.02,3.2]
[1764358214859,0.66,138.03,138.02,3.2]
[1764358215039,0.66,138.03,138.02,26.75419076]
[1764358215237,3.11818526,138.05,138.02,27.45419076]
[1764358215559,0.67,138.05,138.02,27.45419076]
[1764358217031,3.11818526,138.05,138.02,27.45419076]
[1764358220261,2.44818526,138.04,138.02,26.75419076]
[1764358220480,3.11818526,138.04,138.02,26.75419076]
[1764358220784,3.11818526,138.03,137.99,36.00676039]
[1764358220955,2.44818526,138.02,137.99,28.56322628]
[1764358221154,3.11818526,138.02,137.99,28.56322628]
[1764358221582,3.11818526,138.02,137.99,29.26322628]
[1764358222588,0.67,138.01,137.99,28.56322628]
[1764358223884,3.11818526,138.01,137.99,28.56322628]
[1764358224215,0.2,138.06,138.0,0.7]
[1764358224363,0.67,138.05,138.0,3.14818526]
[1764358224556,0.67,138.05,138.0,0.7]
[1764358224557,3.11818526,138.05,138.0,0.7]
[1764358224772,3.11818526,138.05,138.01,0.7]
[1764358225075,0.67,138.04,138.01,0.7]
[1764358225273,0.67,138.04,138.02,7.24532676]
[1764358225892,3.11818526,138.05,138.02,7.94532676]
[1764358226170,0.67,138.05,138.02,7.94532676]
[1764358226387,9.89163608,138.06,138.03,0.7]
[1764358226579,8.11345082,138.06,138.03,0.7]
[1764358226992,0.87,138.06,138.03,0.7]
[1764358227568,0.87,138.06,138.04,7.24427702]
[1764358228313,3.31818526,138.06,138.04,7.24427702]
[1764358230107,3.11818526,138.05,138.02,10.44501514]
[1764358230495,3.11818526,138.04,138.01,7.2457012]
[1764358230710,3.11818526,138.04,138.01,3.2]
[1764358230882,0.67,138.03,138.02,16.308864]
[1764358231289,0.67,138.03,138.01,3.2]